fUSD/lending_fUSD_20260115
["ID","MTS","AMOUNT","RATE_DAILY","PERIOD"]
[402072500,1768507861368,-500.0,0.0003589,10]
[402072501,1768507861379,-500.0,0.0003589,10]
[402072502,1768507861390,-501.54110799,0.0003589,10]
[402072503,1768507861400,-500.0,0.0003589,10]
[402072504,1768507861410,-500.0,0.0003589,10]
[402072505,1768507861420,-500.0,0.0003589,10]
[402072506,1768507861429,-500.0,0.0003589,10]
[402072507,1768507861439,-500.0,0.0003589,10]
[402072508,1768507861451,-660.47,0.0003589,10]
[402072509,1768507861461,-512.43262466,0.0003589,10]
[402072510,1768507861471,-500.0,0.0003589,10]
[402072511,1768507861481,-8365.65013622,0.0003589,10]
[402072512,1768507861491,-500.0,0.0003589,10]
[402072513,1768507861501,-500.0,0.0003589,10]
[402072514,1768507861511,-721.53,0.0003589,10]
[402072515,1768507861521,-507.8,0.0003589,10]
[402072516,1768507861531,-637.25,0.0003589,10]
[402072517,1768507861541,-500.0,0.0003589,10]
[402072518,1768507861551,-738.73,0.0003589,10]
[402072519,1768507861561,-695.78,0.0003589,10]
[402072520,1768507861571,-587.80362617,0.0003589,10]
[402072521,1768507861581,-500.0,0.0003589,10]
[402072522,1768507861591,-691.57,0.0003589,10]
[402072523,1768507861601,-500.0,0.0003589,10]
[402072524,1768507861611,-500.0,0.0003589,10]
[402072525,1768507861620,-500.0,0.0003589,10]
[402072526,1768507861630,-778.97,0.0003589,10]
[402072527,1768507861854,-500.0,0.0003589,10]
[402072528,1768507861876,-500.0,0.0003589,10]
[402072529,1768507861886,-693.09,0.0003589,10]
[402072530,1768507861896,-500.0,0.0003589,10]
[402072531,1768507861906,-500.0,0.0003589,2]
[402072532,1768507861916,-186.12314395,0.0003589,10]
[402072533,1768507861926,-867.05,0.0003589,10]
[402072534,1768507861936,-500.0,0.0003589,10]
[402072535,1768507861946,-233.78730706,0.0003589,10]
[402072536,1768507861956,-500.0,0.0003589,10]
[402072537,1768507861965,-500.0,0.0003589,10]
[402072538,1768507861976,-500.0,0.0003589,10]
[402072539,1768507861986,-506.21250947,0.0003589,10]
[402072540,1768507861996,-500.0,0.0003589,10]
[402072541,1768507862006,-501.82109587,0.0003589,10]
[402072542,1768507862016,-500.0,0.0003589,10]
[402072543,1768507862026,-507.99362695,0.0003589,10]
[402072544,1768507862036,-500.0,0.0003589,7]
[402072545,1768507862045,-837.9,0.0003589,10]
[402072546,1768507862055,-500.0,0.0003589,10]
[402072547,1768507862065,-500.0,0.0003589,10]
[402072548,1768507862074,-500.0,0.0003589,10]
[402072549,1768507862085,-500.0,0.0003589,10]
[402072550,1768507862095,-500.0,0.0003589,10]
[402072551,1768507862104,-500.0,0.0003589,10]
[402072552,1768507862114,-836.19,0.0003589,10]
[402072553,1768507862123,-500.0,0.0003589,10]
[402072554,1768507862135,-500.0,0.0003589,10]
[402072555,1768507862145,-293.72083616,0.0003589,10]
[402072556,1768507862157,-500.0,0.0003589,10]
[402072557,1768507862167,-500.0,0.0003589,10]
[402072558,1768507862177,-500.0,0.0003589,10]
[402072559,1768507862187,-500.0,0.0003589,10]
[402072560,1768507862196,-500.0,0.0003589,10]
[402072561,1768507862206,-500.0,0.0003589,10]
[402072562,1768507862216,-152.753245,0.0003589,31]
[402072563,1768507862225,-500.0,0.0003589,10]
[402072564,1768507862235,-500.0,0.0003589,10]
[402072565,1768507862244,-500.0,0.0003589,10]
[402072566,1768507862254,-500.0,0.0003589,10]
[402072567,1768507862264,-500.0,0.0003589,10]
[402072568,1768507862273,-500.0,0.0003589,10]
[402072569,1768507862283,-500.0,0.0003589,10]
[402072570,1768507862294,-500.0,0.0003589,10]
[402072571,1768507862304,-500.0,0.0003589,10]
[402072572,1768507862314,-151.0,0.0003589,31]
[402072573,1768507862323,-678.71,0.0003589,10]
[402072574,1768507862332,-500.0,0.0003589,10]
[402072575,1768507862342,-500.0,0.0003589,10]
[402072576,1768507862353,-603.22,0.0003589,10]
[402072577,1768507862362,-500.0,0.0003589,10]
[402072578,1768507862372,-356.30794267,0.0003589,10]
[402072579,1768507862381,-500.0,0.0003589,10]
[402072580,1768507862390,-500.0,0.0003589,10]
[402072581,1768507862400,-825.32,0.0003589,10]
[402072582,1768507862409,-707.97,0.0003589,10]
[402072583,1768507862419,-500.0,0.0003589,10]
[402072584,1768507862429,-500.0,0.0003589,10]
[402072585,1768507862438,-500.0,0.0003589,10]
[402072586,1768507862449,-502.76904323,0.0003589,10]
[402072587,1768507862459,-500.0,0.0003589,10]
[402072588,1768507862468,-790.45,0.0003589,10]
[402072589,1768507862478,-500.0,0.0003589,10]
[402072590,1768507862488,-500.0,0.0003589,10]
[402072591,1768507862498,-500.0,0.0003589,10]
[402072592,1768507862510,-520.06910549,0.0003589,10]
[402072593,1768507862520,-500.0,0.0003589,10]
[402072594,1768507862530,-815.1,0.0003589,10]
[402072595,1768507862540,-500.0,0.0003589,10]
[402072596,1768507862549,-500.0,0.0003589,10]
[402072597,1768507862559,-598.21,0.0003589,10]
[402072598,1768507862568,-500.0,0.0003589,10]
[402072599,1768507862579,-500.0,0.0003589,10]
[402072600,1768507862588,-500.0,0.0003589,10]
[402072601,1768507862597,-500.0,0.0003589,10]
[402072602,1768507862607,-556.43591159,0.0003589,10]
[402072603,1768507862616,-500.0,0.0003589,10]
[402072604,1768507862626,-151.0,0.0003589,31]
[402072605,1768507862636,-524.05186852,0.0003589,10]
[402072606,1768507862645,-500.0,0.0003589,10]
[402072607,1768507862655,-500.0,0.0003589,10]
[402072608,1768507862664,-500.0,0.0003589,10]
[402072609,1768507862674,-500.0,0.0003589,10]
[402072610,1768507862684,-500.0,0.0003589,10]
[402072611,1768507862696,-500.0,0.0003589,10]
[402072612,1768507862706,-500.0,0.0003589,10]
[402072613,1768507862716,-500.0,0.0003589,10]
[402072614,1768507862725,-552.81,0.0003589,10]
[402072615,1768507862735,-644.61477237,0.0003589,10]
[402072616,1768507862745,-500.0,0.0003589,10]
[402072617,1768507862754,-784.17,0.0003589,10]
[402072618,1768507862764,-500.0,0.0003589,10]
[402072619,1768507862774,-611.9,0.0003589,10]
[402072620,1768507862783,-500.0,0.0003589,10]
[402072621,1768507862792,-500.0,0.0003589,10]
[402072622,1768507862802,-500.0,0.0003589,10]
[402072623,1768507862812,-992.44,0.0003589,10]
[402072624,1768507862821,-151.0,0.0003589,31]
[402072625,1768507862831,-410.17265081,0.0003589,10]
[402072626,1768507862840,-712.45,0.0003589,10]
[402072627,1768507862849,-500.0,0.0003589,10]
[402072628,1768507862858,-500.0,0.0003589,10]
[402072629,1768507862868,-500.0,0.0003589,10]
[402072630,1768507862877,-681.62,0.0003589,10]
[402072631,1768507862887,-500.0,0.0003589,10]
[402072632,1768507862897,-500.0,0.0003589,10]
[402072633,1768507862906,-500.0,0.0003589,10]
[402072634,1768507862916,-500.0,0.0003589,10]
[402072635,1768507862926,-500.0,0.0003589,10]
[402072636,1768507862936,-500.0,0.0003589,10]
[402072637,1768507862946,-500.0,0.0003589,10]
[402072638,1768507862956,-500.0,0.0003589,10]
[402072639,1768507862966,-571.61,0.0003589,10]
[402072640,1768507862977,-940.35,0.0003589,10]
[402072641,1768507862987,-613.82,0.0003589,10]
[402072642,1768507862997,-952.34,0.0003589,10]
[402072643,1768507863007,-769.6,0.0003589,10]
[402072644,1768507863016,-1349.44,0.0003589,10]
[402072645,1768507863026,-500.0,0.0003589,10]
[402072646,1768507863035,-507.83,0.0003589,10]
[402072647,1768507863045,-847.91,0.0003589,10]
[402072648,1768507863055,-827.37,0.0003589,10]
[402072649,1768507863064,-699.14,0.0003589,10]
[402072650,1768507863074,-528.99,0.0003589,10]
[402072651,1768507863086,-500.0,0.0003589,10]
[402072652,1768507863096,-500.0,0.0003589,10]
[402072653,1768507863106,-511.15365755,0.0003589,10]
[402072654,1768507863115,-500.0,0.0003589,10]
[402072655,1768507863126,-500.0,0.0003589,10]
[402072656,1768507863136,-500.0,0.0003589,10]
[402072657,1768507863145,-500.0,0.0003589,10]
[402072658,1768507863157,-212.05389799,0.0003589,10]
[402072659,1768507863166,-1716.96,0.0003589,10]
[402072660,1768507863176,-663.77,0.0003589,10]
[402072661,1768507863186,-500.0,0.0003589,10]
[402072662,1768507863195,-641.66,0.0003589,10]
[402072663,1768507863205,-500.0,0.0003589,10]
[402072664,1768507863215,-500.0,0.0003589,10]
[402072665,1768507863225,-500.0,0.0003589,10]
[402072666,1768507863235,-500.0,0.0003589,10]
[402072667,1768507863244,-500.0,0.0003589,10]
[402072668,1768507863254,-500.0,0.0003589,10]
[402072669,1768507863264,-500.0,0.0003589,10]
[402072670,1768507863273,-500.0,0.0003589,10]
[402072671,1768507863283,-709.1,0.0003589,10]
[402072672,1768507863292,-500.0,0.0003589,10]
[402072673,1768507863302,-500.0,0.0003589,10]
[402072674,1768507863312,-500.0,0.0003589,10]
[402072675,1768507863322,-500.0,0.0003589,10]
[402072676,1768507863332,-600.0,0.0003589,10]
[402072677,1768507863342,-500.0,0.0003589,10]
[402072678,1768507863351,-212.88557168,0.0003589,10]
[402072679,1768507863360,-555.64940112,0.0003589,10]
[402072680,1768507863370,-500.0,0.0003589,10]
[402072681,1768507863380,-511.32,0.0003589,10]
[402072682,1768507863389,-834.8,0.0003589,10]
[402072683,1768507863399,-500.0,0.0003589,10]
[402072684,1768507863409,-500.0,0.0003589,10]
[402072685,1768507863418,-1590.7,0.0003589,10]
[402072686,1768507863428,-500.0,0.0003589,10]
[402072687,1768507863437,-773.17,0.0003589,10]
[402072688,1768507863448,-500.0,0.0003589,10]
[402072689,1768507863458,-500.0,0.0003589,10]
[402072690,1768507863468,-500.0,0.0003589,10]
[402072691,1768507863478,-693.43,0.0003589,10]
[402072692,1768507863489,-500.0,0.0003589,10]
[402072693,1768507863498,-1099.92,0.0003589,10]
[402072694,1768507863508,-500.0,0.0003589,10]
[402072695,1768507863517,-500.0,0.0003589,10]
[402072696,1768507863527,-609.05398892,0.0003589,10]
[402072697,1768507863536,-500.0,0.0003589,10]
[402072698,1768507863546,-500.0,0.0003589,10]
[402072699,1768507863557,-500.0,0.0003589,10]
[402072700,1768507863568,-500.0,0.0003589,10]
[402072701,1768507863578,-1290.63,0.0003589,10]
[402072702,1768507863588,-507.2,0.0003589,10]
[402072703,1768507863597,-688.01,0.0003589,10]
[402072704,1768507863607,-272.21700916,0.0003589,10]
[402072705,1768507863616,-269.40206921,0.0003589,10]
[402072706,1768507863625,-500.0,0.0003589,10]
[402072707,1768507863635,-500.0,0.0003589,10]
[402072708,1768507863647,-573.81,0.0003589,10]
[402072709,1768507863656,-552.53,0.0003589,10]
[402072710,1768507863666,-500.0,0.0003589,10]
[402072711,1768507863676,-500.0,0.0003589,10]
[402072712,1768507863685,-500.0,0.0003589,10]
[402072713,1768507863695,-751.87,0.0003589,10]
[402072714,1768507863706,-500.0,0.0003589,10]
[402072715,1768507863715,-500.0,0.0003589,10]
[402072716,1768507863726,-500.0,0.0003589,10]
[402072717,1768507863735,-698.74,0.0003589,10]
[402072718,1768507863744,-500.0,0.0003589,10]
[402072719,1768507863754,-500.0,0.0003589,10]
[402072720,1768507863763,-500.0,0.0003589,10]
[402072721,1768507863773,-500.0,0.0003589,10]
[402072722,1768507863783,-500.0,0.0003589,10]
[402072723,1768507863793,-571.0,0.0003589,10]
[402072724,1768507863803,-690.85,0.0003589,10]
[402072725,1768507863812,-500.0,0.0003589,10]
[402072726,1768507863822,-500.0,0.0003589,10]
[402072727,1768507863831,-500.0,0.0003589,10]
[402072728,1768507863841,-500.0,0.0003589,10]
[402072729,1768507863851,-500.0,0.0003589,10]
[402072730,1768507863860,-500.0,0.0003589,10]
[402072731,1768507863871,-500.0,0.0003589,10]
[402072732,1768507863881,-711.36,0.0003589,10]
[402072733,1768507863890,-500.0,0.0003589,10]
[402072734,1768507863901,-500.0,0.0003589,10]
[402072735,1768507863911,-604.63315702,0.0003589,10]
[402072736,1768507863920,-500.0,0.0003589,10]
[402072737,1768507863930,-500.0,0.0003589,10]
[402072738,1768507863939,-533.77,0.0003589,10]
[402072739,1768507863950,-712.7,0.0003589,10]
[402072740,1768507863960,-664.34,0.0003589,10]
[402072741,1768507863969,-500.0,0.0003589,10]
[402072742,1768507863978,-500.0,0.0003589,10]
[402072743,1768507863987,-723.74,0.0003589,10]
[402072744,1768507863997,-500.0,0.0003589,10]
[402072745,1768507864006,-500.0,0.0003589,10]
[402072746,1768507864016,-500.0,0.0003589,10]
[402072747,1768507864026,-500.0,0.0003589,10]
[402072748,1768507864035,-944.72,0.0003589,10]
[402072749,1768507864045,-500.0,0.0003589,10]
[402072750,1768507864054,-500.0,0.0003589,10]
[402072751,1768507864064,-500.0,0.0003589,10]
[402072752,1768507864074,-500.0,0.0003589,10]
[402072753,1768507864085,-500.0,0.0003589,10]
[402072754,1768507864095,-500.0,0.0003589,10]
[402072755,1768507864104,-343.72891265,0.0003589,10]
[402072756,1768507864114,-500.0,0.0003589,10]
[402072757,1768507864123,-500.0,0.0003589,120]
[402072758,1768507864134,-500.0,0.0003589,10]
[402072759,1768507864143,-500.0,0.0003589,10]
[402072760,1768507864153,-855.13,0.0003589,10]
[402072761,1768507864165,-500.0,0.0003589,10]
[402072762,1768507864174,-500.0,0.0003589,10]
[402072763,1768507864184,-500.0,0.0003589,10]
[402072764,1768507864194,-800.13,0.0003589,10]
[402072765,1768507864204,-897.08,0.0003589,10]
[402072766,1768507864213,-1051.57,0.0003589,10]
[402072767,1768507864223,-500.0,0.0003589,10]
[402072768,1768507864232,-500.0,0.0003589,10]
[402072769,1768507864241,-500.0,0.0003589,10]
[402072770,1768507864250,-500.0,0.0003589,10]
[402072771,1768507864260,-500.0,0.0003589,10]
[402072772,1768507864269,-500.0,0.0003589,10]
[402072773,1768507864278,-500.0,0.0003589,10]
[402072774,1768507864287,-1446.28,0.0003589,10]
[402072775,1768507864297,-580.68,0.0003589,10]
[402072776,1768507864307,-564.05,0.0003589,10]
[402072777,1768507864316,-501.9422586,0.0003589,10]
[402072778,1768507864393,-500.0,0.0003589,10]
[402072779,1768507864402,-500.0,0.0003589,10]
[402072780,1768507864411,-500.0,0.0003589,10]
[402072781,1768507864420,-500.0,0.0003589,10]
[402072782,1768507864429,-500.0,0.0003589,10]
[402072783,1768507864438,-500.0,0.0003589,10]
[402072784,1768507864447,-510.23169649,0.0003589,10]
[402072785,1768507864457,-500.0,0.0003589,10]
[402072786,1768507864466,-500.0,0.0003589,10]
[402072787,1768507864475,-500.0,0.0003589,10]
[402072788,1768507864484,-500.0,0.0003589,10]
[402072789,1768507864493,-500.0,0.0003589,10]
[402072790,1768507864503,-500.0,0.0003589,10]
[402072791,1768507864512,-500.0,0.0003589,10]
[402072792,1768507864521,-941.66,0.0003589,10]
[402072793,1768507864530,-500.0,0.0003589,10]
[402072794,1768507864540,-500.0,0.0003589,10]
[402072795,1768507864549,-500.0,0.0003589,10]
[402072796,1768507864558,-500.0,0.0003589,10]
[402072797,1768507864567,-500.0,0.0003589,10]
[402072798,1768507864577,-500.0,0.0003589,10]
[402072799,1768507864586,-500.0,0.0003589,10]
[402072800,1768507864595,-553.13,0.0003589,10]
[402072801,1768507864604,-680.45,0.0003589,10]
[402072802,1768507864614,-500.0,0.0003589,10]
[402072803,1768507864623,-500.0,0.0003589,10]
[402072804,1768507864632,-500.0,0.0003589,10]
[402072805,1768507864641,-500.0,0.0003589,10]
[402072806,1768507864650,-500.0,0.0003589,10]
[402072807,1768507864659,-500.0,0.0003589,10]
[402072808,1768507864668,-223.41686765,0.0003589,10]
[402072809,1768507864682,-891.74,0.0003589,10]
[402072810,1768507864691,-500.0,0.0003589,10]
[402072811,1768507864701,-500.0,0.0003589,10]
[402072812,1768507864710,-500.0,0.0003589,10]
[402072813,1768507864719,-500.0,0.0003589,10]
[402072814,1768507864728,-500.0,0.0003589,10]
[402072815,1768507864737,-500.0,0.0003589,10]
[402072816,1768507864747,-297.05647018,0.0003589,10]
[402072817,1768507864758,-1000.0,0.0003589,10]
[402072818,1768507864768,-500.0,0.0003589,10]
[402072819,1768507864778,-540.5,0.0003589,10]
[402072820,1768507864788,-500.0,0.0003589,10]
[402072821,1768507864799,-821.96,0.0003589,10]
[402072822,1768507864809,-500.0,0.0003589,10]
[402072823,1768507864819,-500.0,0.0003589,10]
[402072824,1768507864828,-500.0,0.0003589,10]
[402072825,1768507864837,-547.21,0.0003589,10]
[402072826,1768507864846,-520.4791012,0.0003589,10]
[402072827,1768507864856,-500.0,0.0003589,10]
[402072828,1768507864866,-500.0,0.0003589,10]
[402072829,1768507864876,-684.35,0.0003589,10]
[402072830,1768507864885,-500.0,0.0003589,10]
[402072831,1768507864895,-500.0,0.0003589,10]
[402072832,1768507864904,-545.69,0.0003589,10]
[402072833,1768507864913,-442.31781502,0.0003589,10]
[402072834,1768507864923,-544.9,0.0003589,10]
[402072835,1768507864932,-500.0,0.0003589,10]
[402072836,1768507864941,-500.0,0.0003589,10]
[402072837,1768507864951,-500.0,0.0003589,10]
[402072838,1768507864961,-500.0,0.0003589,10]
[402072839,1768507864970,-1103.17,0.0003589,2]
[402072840,1768507864980,-500.0,0.0003589,10]
[402072841,1768507864989,-500.0,0.0003589,10]
[402072842,1768507864999,-500.0,0.0003589,10]
[402072843,1768507865009,-500.0,0.0003589,10]
[402072844,1768507865018,-500.0,0.0003589,10]
[402072845,1768507865029,-574.56,0.0003589,10]
[402072846,1768507865039,-500.0,0.0003589,10]
[402072847,1768507865048,-500.0,0.0003589,10]
[402072848,1768507865057,-500.0,0.0003589,10]
[402072849,1768507865066,-638.26230981,0.0003589,10]
[402072850,1768507865075,-500.0,0.0003589,10]
[402072851,1768507865086,-500.0,0.0003589,10]
[402072852,1768507865095,-526.63920831,0.0003589,10]
[402072853,1768507865104,-500.0,0.0003589,10]
[402072854,1768507865113,-500.0,0.0003589,10]
[402072855,1768507865123,-887.75,0.0003589,10]
[402072856,1768507865134,-500.0,0.0003589,10]
[402072857,1768507865144,-500.0,0.0003589,10]
[402072858,1768507865155,-500.0,0.0003589,10]
[402072859,1768507865164,-543.46,0.0003589,10]
[402072860,1768507865174,-878.58,0.0003589,10]
[402072861,1768507865183,-565.39636941,0.0003589,10]
[402072862,1768507865192,-601.93953951,0.0003589,10]
[402072863,1768507865202,-500.0,0.0003589,10]
[402072864,1768507865211,-500.0,0.0003589,10]
[402072865,1768507865221,-500.0,0.0003589,10]
[402072866,1768507865230,-500.0,0.0003589,10]
[402072867,1768507865239,-500.0,0.0003589,10]
[402072868,1768507865249,-500.0,0.0003589,10]
[402072869,1768507865258,-591.19,0.0003589,10]
[402072870,1768507865268,-500.0,0.0003589,10]
[402072871,1768507865277,-700.01,0.0003589,10]
[402072872,1768507865287,-500.0,0.0003589,10]
[402072873,1768507865296,-438.14989937,0.0003589,10]
[402072874,1768507865306,-500.0,0.0003589,10]
[402072875,1768507865315,-500.0,0.0003589,10]
[402072876,1768507865324,-1116.67,0.0003589,10]
[402072877,1768507865333,-712.32,0.0003589,10]
[402072878,1768507865343,-500.0,0.0003589,10]
[402072879,1768507865352,-708.81,0.0003589,10]
[402072880,1768507865362,-630.12,0.0003589,10]
[402072881,1768507865371,-875.21,0.0003589,10]
[402072882,1768507865381,-500.0,0.0003589,10]
[402072883,1768507865390,-346.84212224,0.0003589,10]
[402072884,1768507865399,-500.0,0.0003589,10]
[402072885,1768507865408,-500.0,0.0003589,10]
[402072886,1768507865418,-500.0,0.0003589,10]
[402072887,1768507865427,-260.69799495,0.0003589,10]
[402072888,1768507865436,-1140.34,0.0003589,10]
[402072889,1768507865446,-597.18,0.0003589,10]
[402072890,1768507865455,-561.74,0.0003589,10]
[402072891,1768507865465,-500.0,0.0003589,10]
[402072892,1768507865474,-904.42,0.0003589,10]
[402072893,1768507865484,-500.0,0.0003589,10]
[402072894,1768507865493,-595.24,0.0003589,10]
[402072895,1768507865503,-1000.0,0.0003589,10]
[402072896,1768507865513,-500.0,0.0003589,10]
[402072897,1768507865523,-500.0,0.0003589,10]
[402072898,1768507865532,-993.74,0.0003589,10]
[402072899,1768507865542,-440.66121695,0.0003589,10]
[402072900,1768507865551,-500.0,0.0003589,10]
[402072901,1768507865560,-365.98,0.0003589,2]
[402072902,1768507865570,-500.0,0.0003589,10]
[402072903,1768507865579,-1016.41,0.0003589,10]
[402072904,1768507865588,-500.0,0.0003589,10]
[402072905,1768507865597,-236.05362107,0.0003589,10]
[402072906,1768507865607,-500.0,0.0003589,10]
[402072907,1768507865616,-500.0,0.0003589,10]
[402072908,1768507865626,-500.0,0.0003589,10]
[402072909,1768507865635,-500.0,0.0003589,10]
[402072910,1768507865645,-500.0,0.0003589,10]
[402072911,1768507865654,-500.0,0.0003589,10]
[402072912,1768507865663,-500.0,0.0003589,10]
[402072913,1768507865673,-1014.5,0.0003589,10]
[402072914,1768507865682,-572.3,0.0003589,10]
[402072915,1768507865691,-804.8,0.0003589,10]
[402072916,1768507865701,-500.0,0.0003589,10]
[402072917,1768507865711,-560.06,0.0003589,10]
[402072918,1768507865720,-1265.0,0.0003589,10]
[402072919,1768507865729,-868.66,0.0003589,10]
[402072920,1768507865739,-648.64,0.0003589,10]
[402072921,1768507865748,-570.14,0.0003589,10]
[402072922,1768507865757,-500.0,0.0003589,10]
[402072923,1768507865766,-500.0,0.0003589,10]
[402072924,1768507865776,-500.0,0.0003589,10]
[402072925,1768507865785,-500.0,0.0003589,10]
[402072926,1768507865794,-500.0,0.0003589,10]
[402072927,1768507865805,-500.0,0.0003589,10]
[402072928,1768507865814,-500.0,0.0003589,10]
[402072929,1768507865823,-528.67,0.0003589,10]
[402072930,1768507865833,-250.1130318,0.0003589,10]
[402072931,1768507865842,-654.07,0.0003589,10]
[402072932,1768507865852,-716.05,0.0003589,10]
[402072933,1768507865862,-597.19,0.0003589,10]
[402072934,1768507865871,-500.0,0.0003589,10]
[402072935,1768507865881,-635.90510396,0.0003589,10]
[402072936,1768507865891,-1042.05,0.0003589,10]
[402072937,1768507865901,-500.0,0.0003589,10]
[402072938,1768507865910,-763.18,0.0003589,10]
[402072939,1768507865920,-572.27,0.0003589,10]
[402072940,1768507865929,-525.24,0.0003589,10]
[402072941,1768507865938,-656.17,0.0003589,10]
[402072942,1768507865947,-500.0,0.0003589,10]
[402072943,1768507865957,-500.0,0.0003589,10]
[402072944,1768507865966,-855.47,0.0003589,10]
[402072945,1768507865976,-500.0,0.0003589,10]
[402072946,1768507865985,-500.0,0.0003589,10]
[402072947,1768507865995,-678.86,0.0003589,10]
[402072948,1768507866004,-813.84,0.0003589,10]
[402072949,1768507866013,-550.11,0.0003589,10]
[402072950,1768507866023,-500.0,0.0003589,10]
[402072951,1768507866032,-500.0,0.0003589,10]
[402072952,1768507866041,-500.0,0.0003589,10]
[402072953,1768507866051,-500.0,0.0003589,10]
[402072954,1768507866060,-500.0,0.0003589,10]
[402072955,1768507866069,-831.45,0.0003589,10]
[402072956,1768507866079,-500.0,0.0003589,10]
[402072957,1768507866093,-500.0,0.0003589,10]
[402072958,1768507866102,-500.0,0.0003589,10]
[402072959,1768507866112,-846.61,0.0003589,10]
[402072960,1768507866121,-500.0,0.0003589,10]
[402072961,1768507866132,-603.88,0.0003589,10]
[402072962,1768507866141,-637.79,0.0003589,10]
[402072963,1768507866151,-500.0,0.0003589,10]
[402072964,1768507866162,-500.0,0.0003589,10]
[402072965,1768507866171,-500.0,0.0003589,10]
[402072966,1768507866180,-500.0,0.0003589,10]
[402072967,1768507866190,-500.0,0.0003589,10]
[402072968,1768507866198,-1154.16,0.0003589,10]
[402072969,1768507866208,-500.0,0.0003589,10]
[402072970,1768507866217,-525.01,0.0003589,10]
[402072971,1768507866226,-598.53,0.0003589,10]
[402072972,1768507866236,-500.0,0.0003589,10]
[402072973,1768507866245,-500.0,0.0003589,10]
[402072974,1768507866254,-729.72,0.0003589,10]
[402072975,1768507866264,-500.0,0.0003589,10]
[402072976,1768507866273,-500.0,0.0003589,10]
[402072977,1768507866283,-500.0,0.0003589,10]
[402072978,1768507866293,-323.68694555,0.0003589,10]
[402072979,1768507866303,-500.0,0.0003589,10]
[402072980,1768507866313,-500.0,0.0003589,10]
[402072981,1768507866322,-500.0,0.0003589,10]
[402072982,1768507866331,-500.0,0.0003589,10]
[402072983,1768507866340,-682.66,0.0003589,10]
[402072984,1768507866349,-797.6,0.0003589,10]
[402072985,1768507866359,-500.0,0.0003589,10]
[402072986,1768507866368,-500.0,0.0003589,10]
[402072987,1768507866377,-500.0,0.0003589,10]
[402072988,1768507866387,-500.0,0.0003589,10]
[402072989,1768507866396,-500.0,0.0003589,10]
[402072990,1768507866406,-742.49,0.0003589,10]
[402072991,1768507866416,-1354.09,0.0003589,10]
[402072992,1768507866425,-500.0,0.0003589,10]
[402072993,1768507866435,-986.03,0.0003589,10]
[402072994,1768507866443,-500.0,0.0003589,10]
[402072995,1768507866453,-500.0,0.0003589,10]
[402072996,1768507866462,-500.0,0.0003589,10]
[402072997,1768507866471,-500.0,0.0003589,10]
[402072998,1768507866481,-500.0,0.0003589,10]
[402072999,1768507866490,-500.0,0.0003589,10]